fUST/lending_fUST_20250705
["ID","MTS","AMOUNT","RATE_DAILY","PERIOD"]
[369685211,1751698267516,-460.0,0.00020493,2]
[369685212,1751698267525,-460.0,0.00020493,2]
[369685213,1751698267534,-191.96,0.00020494,2]
[369685214,1751698267543,-460.0,0.00020494,2]
[369685215,1751698267552,-462.93499334,0.00020494,2]
[369685216,1751698267561,-462.16421179,0.00020494,2]
[369685217,1751698267571,-464.63591698,0.00020494,2]
[369685218,1751698267580,-460.0,0.00020494,2]
[369685219,1751698267590,-460.0,0.00020494,2]
[369685220,1751698267599,-460.0,0.00020495,2]
[369685221,1751698267609,-151.0,0.000205,4]
[369685222,1751698267618,-460.0,0.00020547,2]
[369685223,1751698267627,-464.37634784,0.00020547,2]
[369685224,1751698267637,-508.7119215,0.00020547,2]
[369685225,1751698267646,-2308.35,0.00020547,2]
[369685226,1751698267655,-612.49,0.00020547,2]
[369685227,1751698267665,-244.65,0.00020547,2]
[369685228,1751698267674,-460.0,0.00020547,2]
[369685229,1751698267683,-460.0,0.00020547,2]
[369685230,1751698267692,-1190.77,0.00020547,2]
[369685231,1751698267702,-2277.85,0.00020547,2]
[369685232,1751698267711,-534.23,0.00020547,2]
[369685233,1751698267721,-2848.3,0.00020547,2]
[369685234,1751698267731,-460.0,0.00020547,2]
[369685235,1751698267741,-606.67,0.00020547,2]
[369685236,1751698267751,-507.51,0.00020547,2]
[369685237,1751698267760,-1373.0,0.00020547,2]
[369685238,1751698267770,-298.76097107,0.00020547,2]
[369685239,1751698267779,-460.0,0.00020547,2]
[369685240,1751698267788,-460.0,0.00020547,2]
[369685241,1751698267797,-460.0,0.00020547,2]
[369685242,1751698267807,-1558.56,0.00020547,2]
[369685243,1751698267816,-460.0,0.00020547,2]
[369685244,1751698267825,-460.0,0.00020547,2]
[369685245,1751698267834,-1336.11,0.00020547,2]
[369685246,1751698267843,-687.04,0.00020547,2]
[369685247,1751698267852,-2406.36,0.00020547,2]
[369685248,1751698267861,-460.0,0.00020547,2]
[369685249,1751698267871,-556.57,0.00020566,2]
[369685250,1751698267880,-281.28,0.00020566,2]
[369685251,1751698267889,-460.0,0.00020566,2]
[369685252,1751698267898,-460.0,0.00020566,2]
[369685253,1751698267907,-460.0,0.00020566,2]
[369685254,1751698267916,-460.0,0.00020566,2]
[369685255,1751698267925,-460.0,0.00020566,2]
[369685256,1751698267935,-485.9,0.00020566,2]
[369685257,1751698267944,-460.0,0.00020566,2]
[369685258,1751698267954,-460.0,0.00020566,2]
[369685259,1751698267963,-460.0,0.00020566,2]
[369685260,1751698267972,-524.86,0.00020566,2]
[369685261,1751698267982,-460.0,0.00020566,2]
[369685262,1751698267991,-604.9,0.00020566,2]
[369685263,1751698268000,-1940.46,0.00020566,2]
[369685264,1751698268009,-215.58,0.00020566,2]
[369685265,1751698268018,-220.320668,0.00020566,2]
[369685266,1751698268027,-220.320668,0.00020566,2]
[369685267,1751698268036,-460.0,0.00020566,2]
[369685268,1751698268045,-460.0,0.00020566,2]
[369685269,1751698268055,-460.0,0.00020566,2]
[369685270,1751698268065,-473.36,0.00020566,2]
[369685271,1751698268075,-460.0,0.00020566,2]
[369685272,1751698268084,-460.0,0.00020566,2]
[369685273,1751698268094,-692.13,0.00020566,2]
[369685274,1751698268104,-460.0,0.00020566,2]
[369685275,1751698268113,-460.0,0.00020566,2]
[369685276,1751698268122,-571.66,0.00020566,2]
[369685277,1751698268131,-460.0,0.00020566,2]
[369685278,1751698268140,-486.68,0.00020566,2]
[369685279,1751698268149,-460.0,0.00020567,2]
[369685280,1751698268158,-460.0,0.00020567,2]
[369685281,1751698268167,-210.04286555,0.00020567,2]
[369685282,1751698268177,-460.0,0.00020567,2]
[369685283,1751698268186,-460.0,0.00020567,2]
[369685284,1751698268195,-460.0,0.00020567,2]
[369685285,1751698268204,-460.0,0.00020567,2]
[369685286,1751698268213,-3576.59,0.00020567,2]
[369685287,1751698268222,-501.28,0.00020567,2]
[369685288,1751698268232,-964.26,0.00020567,2]
[369685289,1751698268241,-1022.44,0.00020567,2]
[369685290,1751698268250,-460.0,0.00020567,2]
[369685291,1751698268259,-460.0,0.00020567,2]
[369685292,1751698268268,-1070.75,0.00020567,2]
[369685293,1751698268277,-168.0,0.00020576,2]
[369685294,1751698268286,-214.00065714,0.0002059,3]
[369685295,1751698268295,-322.22582166,0.00020623,2]
[369685296,1751698268304,-460.0,0.00020666,2]
[369685297,1751698268313,-460.0,0.00020666,2]
[369685298,1751698268322,-460.0,0.00020666,2]
[369685299,1751698268331,-460.0,0.00020666,2]
[369685300,1751698268340,-460.0,0.00020666,2]
[369685301,1751698268349,-152.527497,0.00020666,2]
[369685302,1751698268358,-151.0,0.00020666,2]
[369685303,1751698268367,-151.0,0.00020666,2]
[369685304,1751698268376,-460.0,0.00020666,2]
[369685305,1751698268385,-460.0,0.00020666,2]
[369685306,1751698268394,-1556.76,0.00020666,2]
[369685307,1751698268403,-1032.0,0.00020666,2]
[369685308,1751698268413,-460.0,0.00020666,2]
[369685309,1751698268422,-460.0,0.00020666,2]
[369685310,1751698268431,-807.65,0.00020666,2]
[369685311,1751698268439,-190.234989,0.00020666,2]
[369685312,1751698268448,-190.234989,0.00020666,2]
[369685313,1751698268458,-750.64,0.00020666,2]
[369685314,1751698268467,-561.54,0.00020666,2]
[369685315,1751698268476,-460.0,0.00020666,2]
[369685316,1751698268484,-3198.94,0.00020666,2]
[369685317,1751698268493,-460.0,0.00020666,2]
[369685318,1751698268502,-1225.5,0.00020666,2]
[369685319,1751698268514,-460.0,0.00020666,2]
[369685320,1751698268523,-151.0,0.00020667,2]
[369685321,1751698268533,-460.0,0.00020667,2]
[369685322,1751698268542,-460.0,0.00020667,2]
[369685323,1751698268552,-460.0,0.00020667,2]
[369685324,1751698268561,-499.44,0.00020667,2]
[369685325,1751698268570,-460.0,0.00020667,2]
[369685326,1751698268579,-460.0,0.00020667,2]
[369685327,1751698268588,-460.0,0.00020667,2]
[369685328,1751698268598,-460.0,0.00020667,2]
[369685329,1751698268607,-460.0,0.00020667,2]
[369685330,1751698268615,-460.0,0.00020667,2]
[369685331,1751698268624,-500.0,0.00020667,2]
[369685332,1751698268633,-538.52,0.00020667,2]
[369685333,1751698268642,-460.0,0.00020667,2]
[369685334,1751698268650,-460.0,0.00020667,2]
[369685335,1751698268659,-460.0,0.00020667,2]
[369685336,1751698268669,-460.0,0.00020667,2]
[369685337,1751698268677,-460.0,0.00020667,2]
[369685338,1751698268686,-460.0,0.00020667,2]
[369685339,1751698268695,-460.0,0.00020667,2]
[369685340,1751698268704,-555.9,0.00020667,2]
[369685341,1751698268713,-460.0,0.00020667,2]
[369685342,1751698268722,-460.0,0.00020667,2]
[369685343,1751698268732,-460.0,0.00020667,2]
[369685344,1751698268741,-460.0,0.00020667,2]
[369685345,1751698268750,-460.0,0.00020667,2]
[369685346,1751698268759,-460.0,0.00020667,2]
[369685347,1751698268767,-460.0,0.00020667,2]
[369685348,1751698268777,-179.08,0.00020668,2]
[369685349,1751698268786,-214.00065714,0.00020762,3]
[369685350,1751698268794,-582.69,0.00020767,2]
[369685351,1751698268803,-280.55453164,0.00020767,2]
[369685352,1751698268812,-460.0,0.00020767,2]
[369685353,1751698268821,-402.87912184,0.00020767,2]
[369685354,1751698268830,-533.56296843,0.00020767,2]
[369685355,1751698268840,-318.23,0.00020767,2]
[369685356,1751698268848,-442.84,0.00020767,2]
[369685357,1751698268858,-460.0,0.00020767,2]
[369685358,1751698268867,-460.0,0.00020768,2]
[369685359,1751698268876,-350.59,0.00020768,2]
[369685360,1751698268885,-151.0,0.00020769,2]
[369685361,1751698268894,-151.0,0.00020769,2]
[369685362,1751698268904,-151.0,0.00020769,2]
[369685363,1751698268913,-151.0,0.00020769,2]
[369685364,1751698268922,-151.0,0.00020769,2]
[369685365,1751698268931,-151.0,0.00020769,2]
[369685366,1751698268941,-151.0,0.00020769,2]
[369685367,1751698268950,-151.0,0.00020769,2]
[369685368,1751698268959,-462.52481341,0.00020769,2]
[369685369,1751698268969,-460.0,0.00020821,2]
[369685370,1751698268978,-2308.35,0.00020821,2]
[369685371,1751698268987,-612.49,0.00020821,2]
[369685372,1751698268997,-460.0,0.00020821,2]
[369685373,1751698269005,-460.0,0.00020821,2]
[369685374,1751698269015,-1190.77,0.00020821,2]
[369685375,1751698269024,-2277.85,0.00020821,2]
[369685376,1751698269033,-534.23,0.00020821,2]
[369685377,1751698269043,-2848.3,0.00020821,2]
[369685378,1751698269052,-460.0,0.00020821,2]
[369685379,1751698269062,-507.51,0.00020821,2]
[369685380,1751698269071,-1373.0,0.00020821,2]
[369685381,1751698269080,-460.0,0.00020821,2]
[369685382,1751698269090,-247.0,0.00020821,2]
[369685383,1751698269099,-460.0,0.00020821,2]
[369685384,1751698269108,-1558.56,0.00020821,2]
[369685385,1751698269118,-460.0,0.00020821,2]
[369685386,1751698269127,-460.0,0.00020821,2]
[369685387,1751698269136,-1336.11,0.00020821,2]
[369685388,1751698269146,-687.04,0.00020821,2]
[369685389,1751698269155,-2406.36,0.00020821,2]
[369685390,1751698269165,-460.0,0.00020821,2]
[369685391,1751698269174,-473.3,0.0002084,2]
[369685392,1751698269183,-460.0,0.0002084,2]
[369685393,1751698269192,-460.0,0.0002084,2]
[369685394,1751698269201,-460.0,0.0002084,2]
[369685395,1751698269211,-460.0,0.0002084,2]
[369685396,1751698269220,-485.9,0.0002084,2]
[369685397,1751698269230,-460.0,0.0002084,2]
[369685398,1751698269239,-246.17,0.0002084,2]
[369685399,1751698269352,-460.0,0.0002084,2]
[369685400,1751698269362,-460.0,0.0002084,2]
[369685401,1751698269372,-1940.46,0.0002084,2]
[369685402,1751698269381,-460.0,0.0002084,2]
[369685403,1751698269391,-201.33,0.0002084,2]
[369685404,1751698269400,-460.0,0.0002084,2]
[369685405,1751698269409,-473.36,0.0002084,2]
[369685406,1751698269418,-460.0,0.0002084,2]
[369685407,1751698269427,-460.0,0.0002084,2]
[369685408,1751698269437,-692.13,0.0002084,2]
[369685409,1751698269447,-460.0,0.0002084,2]
[369685410,1751698269455,-460.0,0.0002084,2]
[369685411,1751698269465,-460.0,0.0002084,2]
[369685412,1751698269474,-486.68,0.0002084,2]
[369685413,1751698269483,-460.0,0.00020841,2]
[369685414,1751698269492,-460.0,0.00020841,2]
[369685415,1751698269501,-460.0,0.00020841,2]
[369685416,1751698269513,-460.0,0.00020841,2]
[369685417,1751698269522,-225.43121455,0.00020841,2]
[369685418,1751698269531,-460.0,0.00020841,2]
[369685419,1751698269541,-3576.59,0.00020841,2]
[369685420,1751698269551,-501.28,0.00020841,2]
[369685421,1751698269560,-964.26,0.00020841,2]
[369685422,1751698269569,-1022.44,0.00020841,2]
[369685423,1751698269579,-460.0,0.00020841,2]
[369685424,1751698269590,-460.0,0.00020841,2]
[369685425,1751698269599,-1070.75,0.00020841,2]
[369685426,1751698269608,-620.91777822,0.00020888,2]
[369685427,1751698269618,-1000.0,0.0002089,2]
[369685428,1751698269627,-784.572998,0.0002089,4]
[369685429,1751698269636,-168.0,0.00020908,2]
[369685430,1751698269645,-158.333332,0.00020933,2]
[369685431,1751698269654,-214.00065714,0.00020934,4]
[369685432,1751698269663,-460.0,0.0002094,2]
[369685433,1751698269672,-460.0,0.0002094,2]
[369685434,1751698269681,-460.0,0.0002094,2]
[369685435,1751698269691,-151.0,0.0002094,2]
[369685436,1751698269700,-191.893066,0.0002094,2]
[369685437,1751698269709,-191.893066,0.0002094,2]
[369685438,1751698269718,-151.0,0.0002094,2]
[369685439,1751698269727,-152.014631,0.0002094,2]
[369685440,1751698269736,-151.0,0.0002094,2]
[369685441,1751698269745,-151.0,0.0002094,2]
[369685442,1751698269754,-151.0,0.0002094,2]
[369685443,1751698269763,-151.0,0.0002094,2]
[369685444,1751698269774,-337.48,0.0002094,2]
[369685445,1751698269783,-460.0,0.0002094,2]
[369685446,1751698269792,-1556.76,0.0002094,2]
[369685447,1751698269802,-1032.0,0.0002094,2]
[369685448,1751698269811,-460.0,0.0002094,2]
[369685449,1751698269820,-807.65,0.0002094,2]
[369685450,1751698269830,-750.64,0.0002094,2]
[369685451,1751698269839,-561.54,0.0002094,2]
[369685452,1751698269847,-460.0,0.0002094,2]
[369685453,1751698269856,-3198.94,0.0002094,2]
[369685454,1751698269865,-1225.5,0.0002094,2]
[369685455,1751698269874,-460.0,0.0002094,2]
[369685456,1751698269883,-151.0,0.00020941,2]
[369685457,1751698269892,-460.0,0.00020941,2]
[369685458,1751698269901,-207.89,0.00020941,2]
[369685459,1751698269910,-460.0,0.00020941,2]
[369685460,1751698269919,-499.44,0.00020941,2]
[369685461,1751698269928,-277.12,0.00020941,2]
[369685462,1751698269937,-460.0,0.00020941,2]
[369685463,1751698269946,-460.0,0.00020941,2]
[369685464,1751698269955,-440.11530858,0.00020941,2]
[369685465,1751698269965,-460.0,0.00020941,2]
[369685466,1751698269974,-460.0,0.00020941,2]
[369685467,1751698269984,-537.5297294,0.00020941,2]
[369685468,1751698269993,-538.52,0.00020941,2]
[369685469,1751698270003,-460.0,0.00020941,2]
[369685470,1751698270012,-460.0,0.00020941,2]
[369685471,1751698270021,-460.0,0.00020941,2]
[369685472,1751698270030,-313.36837773,0.00020941,2]
[369685473,1751698270039,-460.0,0.00020941,2]
[369685474,1751698270049,-591.9438839,0.00020941,2]
[369685475,1751698270058,-337.76095347,0.00020941,2]
[369685476,1751698270071,-555.9,0.00020941,2]
[369685477,1751698270080,-460.0,0.00020941,2]
[369685478,1751698270090,-328.04,0.00020941,2]
[369685479,1751698270099,-567.57,0.00020941,2]
[369685480,1751698270108,-460.0,0.00020941,2]
[369685481,1751698270117,-322.12,0.00020941,2]
[369685482,1751698270126,-480.14,0.00020941,2]
[369685483,1751698270136,-320.44,0.00020941,2]
[369685484,1751698270145,-215.0738,0.00020942,2]
[369685485,1751698270155,-500.0,0.00021,2]
[369685486,1751698270164,-500.0,0.00021,2]
[369685487,1751698270173,-168.0,0.00021025,2]
[369685488,1751698270183,-158.333332,0.00021029,2]
[369685489,1751698270192,-151.0,0.00021041,2]
[369685490,1751698270201,-582.69,0.00021041,2]
[369685491,1751698270210,-460.0,0.00021041,2]
[369685492,1751698270220,-460.0,0.00021041,2]
[369685493,1751698270229,-206.21028362,0.00021041,2]
[369685494,1751698270238,-153.824959,0.00021042,2]
[369685495,1751698270247,-460.0,0.00021042,2]
[369685496,1751698270256,-151.0,0.00021043,2]
[369685497,1751698270265,-460.0,0.00021095,2]
[369685498,1751698270275,-2308.35,0.00021095,2]
[369685499,1751698270284,-612.49,0.00021095,2]
[369685500,1751698270293,-460.0,0.00021095,2]
[369685501,1751698270303,-460.0,0.00021095,2]
[369685502,1751698270312,-1190.77,0.00021095,2]
[369685503,1751698270321,-2277.85,0.00021095,2]
[369685504,1751698270330,-534.23,0.00021095,2]
[369685505,1751698270340,-2848.3,0.00021095,2]
[369685506,1751698270349,-460.0,0.00021095,2]
[369685507,1751698270357,-507.51,0.00021095,2]
[369685508,1751698270366,-1373.0,0.00021095,2]
[369685509,1751698270385,-460.0,0.00021095,2]
[369685510,1751698270397,-460.0,0.00021095,2]
[369685511,1751698270407,-1558.56,0.00021095,2]
[369685512,1751698270417,-413.67,0.00021095,2]
[369685513,1751698270427,-460.0,0.00021095,2]
[369685514,1751698270436,-1336.11,0.00021095,2]
[369685515,1751698270445,-687.04,0.00021095,2]
[369685516,1751698270455,-2406.36,0.00021095,2]
[369685517,1751698270465,-460.0,0.00021095,2]
[369685518,1751698270474,-1748.0,0.00021106,2]
[369685519,1751698270484,-1748.0,0.00021106,2]
[369685520,1751698270493,-1748.0,0.00021106,2]
[369685521,1751698270503,-1748.0,0.00021106,2]
[369685522,1751698270516,-1748.0,0.00021106,2]
[369685523,1751698270526,-1748.0,0.00021106,2]
[369685524,1751698270535,-1748.0,0.00021106,2]
[369685525,1751698270547,-1748.0,0.00021106,2]
[369685526,1751698270556,-1018.0556865,0.00021106,2]
[369685527,1751698270565,-1747.0,0.00021106,2]
[369685528,1751698270574,-151.0,0.00021106,2]
[369685529,1751698270585,-214.00065714,0.00021107,4]
[369685530,1751698270594,-1076.059421,0.00021107,2]
[369685531,1751698270603,-160.83,0.00021114,2]
[369685532,1751698270613,-460.0,0.00021114,2]
[369685533,1751698270622,-370.51,0.00021114,2]
[369685534,1751698270632,-316.64430277,0.00021114,2]
[369685535,1751698270642,-485.9,0.00021114,2]
[369685536,1751698270651,-460.0,0.00021114,2]
[369685537,1751698270660,-460.0,0.00021114,2]
[369685538,1751698270669,-460.0,0.00021114,2]
[369685539,1751698270678,-1940.46,0.00021114,2]
[369685540,1751698270687,-460.0,0.00021114,2]
[369685541,1751698270696,-460.0,0.00021114,2]
[369685542,1751698270705,-473.36,0.00021114,2]
[369685543,1751698270714,-460.0,0.00021114,2]
[369685544,1751698270723,-541.73,0.00021114,2]
[369685545,1751698270733,-692.13,0.00021114,2]
[369685546,1751698270742,-460.0,0.00021114,2]
[369685547,1751698270751,-352.31302171,0.00021114,2]
[369685548,1751698270761,-460.0,0.00021114,2]
[369685549,1751698270770,-486.68,0.00021114,2]
[369685550,1751698270780,-460.0,0.00021115,2]
[369685551,1751698270789,-460.0,0.00021115,2]
[369685552,1751698270798,-460.0,0.00021115,2]
[369685553,1751698270808,-460.0,0.00021115,2]
[369685554,1751698270817,-460.0,0.00021115,2]
[369685555,1751698270826,-3576.59,0.00021115,2]
[369685556,1751698270836,-501.28,0.00021115,2]
[369685557,1751698270845,-964.26,0.00021115,2]
[369685558,1751698270855,-1022.44,0.00021115,2]
[369685559,1751698270864,-364.06,0.00021115,2]
[369685560,1751698270874,-520.02875773,0.00021115,2]
[369685561,1751698270883,-1070.75,0.00021115,2]
[369685562,1751698270893,-158.333332,0.00021125,2]
[369685563,1751698270902,-206.21028362,0.00021151,2]
[369685564,1751698270912,-168.0,0.00021162,2]
[369685565,1751698270921,-60551.5240894,0.0002117,5]
[369685566,1751698270931,-151.0,0.0002117,2]
[369685567,1751698270941,-151.0,0.0002117,2]
[369685568,1751698270950,-151.0,0.0002117,2]
[369685569,1751698270960,-151.0,0.0002117,2]
[369685570,1751698270969,-151.0,0.0002117,2]
[369685571,1751698270978,-733.1725326,0.00021205,2]
[369685572,1751698270987,-196.82,0.00021214,2]
[369685573,1751698270996,-460.0,0.00021214,2]
[369685574,1751698271006,-462.24176323,0.00021214,2]
[369685575,1751698271014,-460.0,0.00021214,2]
[369685576,1751698271024,-1556.76,0.00021214,2]
[369685577,1751698271034,-1032.0,0.00021214,2]
[369685578,1751698271043,-460.0,0.00021214,2]
[369685579,1751698271052,-807.65,0.00021214,2]
[369685580,1751698271062,-750.64,0.00021214,2]
[369685581,1751698271071,-561.54,0.00021214,2]
[369685582,1751698271081,-460.0,0.00021214,2]
[369685583,1751698271090,-3198.94,0.00021214,2]
[369685584,1751698271099,-1225.5,0.00021214,2]
[369685585,1751698271108,-460.0,0.00021214,2]
[369685586,1751698271117,-460.0,0.00021215,2]
[369685587,1751698271134,-460.0,0.00021215,2]
[369685588,1751698271143,-499.44,0.00021215,2]
[369685589,1751698271153,-599.20949468,0.00021215,2]
[369685590,1751698271163,-460.0,0.00021215,2]
[369685591,1751698271173,-161.7908869,0.00021215,2]
[369685592,1751698271182,-460.0,0.00021215,2]
[369685593,1751698271192,-538.52,0.00021215,2]
[369685594,1751698271201,-460.0,0.00021215,2]
[369685595,1751698271209,-472.21123797,0.00021215,2]
[369685596,1751698271219,-460.0,0.00021215,2]
[369685597,1751698271228,-460.0,0.00021215,2]
[369685598,1751698271237,-555.9,0.00021215,2]
[369685599,1751698271245,-460.0,0.00021215,2]
[369685600,1751698271255,-569.51124202,0.00021215,2]
[369685601,1751698271264,-220.320668,0.00021215,2]
[369685602,1751698271273,-220.320668,0.00021215,2]
[369685603,1751698271282,-969.064,0.00021216,2]
[369685604,1751698271291,-2157.752,0.00021216,2]
[369685605,1751698271300,-648.056,0.00021216,2]
[369685606,1751698271309,-158.333332,0.00021221,2]
[369685607,1751698271318,-206.21028362,0.00021233,2]
[369685608,1751698271327,-160.0,0.0002125,5]
[369685609,1751698271336,-214.00065714,0.00021279,5]
[369685610,1751698271345,-177.88,0.000213,2]
[369685611,1751698271354,-582.69,0.00021315,2]
[369685612,1751698271367,-460.0,0.00021315,2]
[369685613,1751698271376,-153.539638,0.00021315,2]
[369685614,1751698271385,-190.234989,0.00021315,2]
[369685615,1751698271394,-190.234989,0.00021315,2]
[369685616,1751698271403,-460.0,0.00021315,2]
[369685617,1751698271413,-460.0,0.00021316,2]
[369685618,1751698271422,-158.333332,0.00021317,2]
[369685619,1751698271431,-1436.90833697,0.00021317,2]
[369685620,1751698271441,-452.0,0.00021332,2]
[369685621,1751698271450,-151.0,0.00021336,2]
[369685622,1751698271459,-206.21028362,0.00021342,2]
[369685623,1751698271468,-168.0,0.00021365,2]
[369685624,1751698271477,-256.91,0.00021369,2]
[369685625,1751698271486,-2308.35,0.00021369,2]
[369685626,1751698271495,-612.49,0.00021369,2]
[369685627,1751698271507,-460.0,0.00021369,2]
[369685628,1751698271517,-588.37,0.00021369,2]
[369685629,1751698271526,-1190.77,0.00021369,2]
[369685630,1751698271535,-2277.85,0.00021369,2]
[369685631,1751698271644,-534.23,0.00021369,2]
[369685632,1751698271653,-2848.3,0.00021369,2]
[369685633,1751698271662,-460.0,0.00021369,2]
[369685634,1751698271671,-507.51,0.00021369,2]
[369685635,1751698271681,-1373.0,0.00021369,2]
[369685636,1751698271690,-373.59312756,0.00021369,2]
[369685637,1751698271699,-460.0,0.00021369,2]
[369685638,1751698271708,-1558.56,0.00021369,2]
[369685639,1751698271717,-460.0,0.00021369,2]
[369685640,1751698271726,-1336.11,0.00021369,2]
[369685641,1751698271735,-687.04,0.00021369,2]
[369685642,1751698271743,-2406.36,0.00021369,2]
[369685643,1751698271753,-460.0,0.00021369,2]
[369685644,1751698271762,-153.0,0.0002137,2]
[369685645,1751698271771,-168.0,0.00021371,2]
[369685646,1751698271780,-222.573344,0.00021383,2]
[369685647,1751698271789,-500.0,0.00021388,10]
[369685648,1751698271799,-500.0,0.00021388,10]
[369685649,1751698271808,-500.0,0.00021388,10]
[369685650,1751698271818,-500.0,0.00021388,10]
[369685651,1751698271827,-500.0,0.00021388,10]
[369685652,1751698271836,-500.0,0.00021388,10]
[369685653,1751698271847,-375.32308385,0.00021388,2]
[369685654,1751698271857,-485.9,0.00021388,2]
[369685655,1751698271867,-460.0,0.00021388,2]
[369685656,1751698271876,-460.0,0.00021388,2]
[369685657,1751698271885,-460.0,0.00021388,2]
[369685658,1751698271895,-1940.46,0.00021388,2]
[369685659,1751698271904,-460.0,0.00021388,2]
[369685660,1751698271914,-460.0,0.00021388,2]
[369685661,1751698271924,-473.36,0.00021388,2]
[369685662,1751698271933,-460.0,0.00021388,2]
[369685663,1751698271943,-692.13,0.00021388,2]
[369685664,1751698271952,-460.0,0.00021388,2]
[369685665,1751698271962,-460.0,0.00021388,2]
[369685666,1751698271971,-486.68,0.00021388,2]
[369685667,1751698271981,-151.705346,0.00021389,2]
[369685668,1751698271990,-151.0,0.00021389,2]
[369685669,1751698271999,-460.0,0.00021389,2]
[369685670,1751698272008,-460.0,0.00021389,2]
[369685671,1751698272018,-460.0,0.00021389,2]
[369685672,1751698272028,-460.0,0.00021389,2]
[369685673,1751698272037,-460.0,0.00021389,2]
[369685674,1751698272047,-3576.59,0.00021389,2]
[369685675,1751698272056,-501.28,0.00021389,2]
[369685676,1751698272066,-964.26,0.00021389,2]
[369685677,1751698272076,-1022.44,0.00021389,2]
[369685678,1751698272086,-1070.75,0.00021389,2]
[369685679,1751698272095,-322.22582166,0.00021399,2]
[369685680,1751698272105,-158.333332,0.00021412,2]
[369685681,1751698272114,-56619.97177659,0.00021427,2]
[369685682,1751698272124,-151.0,0.00021427,2]
[369685683,1751698272134,-151.0,0.00021427,2]
[369685684,1751698272143,-151.0,0.00021427,2]
[369685685,1751698272153,-151.0,0.00021427,2]
[369685686,1751698272162,-151.0,0.00021427,2]
[369685687,1751698272173,-151.0,0.00021427,2]
[369685688,1751698272182,-151.0,0.00021427,2]
[369685689,1751698272192,-4000.0,0.00021429,4]
[369685690,1751698272202,-166.666668,0.00021435,2]
[369685691,1751698272211,-214.00065714,0.00021452,5]
[369685692,1751698272221,-206.21028362,0.00021452,2]
[369685693,1751698272231,-168.0,0.0002146,2]
[369685694,1751698272240,-600.0,0.0002148,2]
[369685695,1751698272249,-355.27036616,0.0002148,2]
[369685696,1751698272258,-315.87333076,0.00021482,2]
[369685697,1751698272268,-154.25677466,0.00021482,2]
[369685698,1751698272278,-460.0,0.00021488,2]
[369685699,1751698272287,-460.0,0.00021488,2]
[369685700,1751698272296,-1556.76,0.00021488,2]
[369685701,1751698272306,-1032.0,0.00021488,2]
[369685702,1751698272316,-460.0,0.00021488,2]
[369685703,1751698272326,-807.65,0.00021488,2]
[369685704,1751698272335,-750.64,0.00021488,2]
[369685705,1751698272345,-561.54,0.00021488,2]
[369685706,1751698272354,-460.0,0.00021488,2]
[369685707,1751698272363,-3198.94,0.00021488,2]
[369685708,1751698272373,-1225.5,0.00021488,2]
[369685709,1751698272382,-460.0,0.00021488,2]
[369685710,1751698272391,-460.0,0.00021489,2]